fUST/lending_fUST_20250718
["ID","MTS","AMOUNT","RATE_DAILY","PERIOD"]
[372939344,1752814278198,-683.36,0.00020821,2]
[372939345,1752814278208,-2418.55,0.00020821,2]
[372939346,1752814278218,-1045.61,0.00020821,2]
[372939347,1752814278228,-538.01,0.00020821,2]
[372939348,1752814278241,-467.57322438,0.00020821,2]
[372939349,1752814278251,-560.07,0.00020821,2]
[372939350,1752814278260,-460.0,0.00020821,2]
[372939351,1752814278270,-686.49,0.00020821,2]
[372939352,1752814278281,-883.96,0.00020821,2]
[372939353,1752814278290,-191.53,0.00020821,2]
[372939354,1752814278300,-460.0,0.00020821,2]
[372939355,1752814278309,-330.29447775,0.00020821,2]
[372939356,1752814278320,-1347.37,0.00020821,2]
[372939357,1752814278330,-951.1,0.00020821,2]
[372939358,1752814278339,-642.72,0.00020821,2]
[372939359,1752814278349,-460.0,0.00020821,2]
[372939360,1752814278359,-460.0,0.00020821,2]
[372939361,1752814278368,-855.25,0.00020821,2]
[372939362,1752814278378,-618.09,0.00020821,2]
[372939363,1752814278388,-4686.52,0.00020821,2]
[372939364,1752814278398,-723.7,0.00020821,2]
[372939365,1752814278408,-460.0,0.00020821,2]
[372939366,1752814278418,-460.0,0.00020821,2]
[372939367,1752814278428,-1372.5,0.00020821,2]
[372939368,1752814278437,-898.43,0.00020821,2]
[372939369,1752814278558,-3660.04,0.00020821,2]
[372939370,1752814278569,-3275.21,0.00020821,2]
[372939371,1752814278579,-908.6,0.00020821,2]
[372939372,1752814278588,-345.09533387,0.00020821,2]
[372939373,1752814278598,-460.0,0.00020821,2]
[372939374,1752814278608,-899.51,0.00020821,2]
[372939375,1752814278617,-884.48,0.00020821,2]
[372939376,1752814278627,-151.0,0.00020821,2]
[372939377,1752814278637,-965.48,0.00020821,2]
[372939378,1752814278647,-888.06,0.00020821,2]
[372939379,1752814278656,-766.66,0.00020821,2]
[372939380,1752814278666,-1451.87,0.00020821,2]
[372939381,1752814278675,-789.94,0.00020821,2]
[372939382,1752814278685,-1037.24,0.00020821,2]
[372939383,1752814278694,-3558.83,0.00020821,2]
[372939384,1752814278704,-652.7,0.00020821,2]
[372939385,1752814278714,-460.0,0.00020821,2]
[372939386,1752814278724,-5829.63,0.00020821,2]
[372939387,1752814278736,-2475.6,0.00020821,2]
[372939388,1752814278746,-324.92702152,0.00020821,2]
[372939389,1752814278756,-921.62,0.00020821,2]
[372939390,1752814278768,-151.0,0.00020821,2]
[372939391,1752814278778,-727.58,0.00020821,2]
[372939392,1752814278788,-2187.72,0.00020821,2]
[372939393,1752814278797,-1653.45,0.00020821,2]
[372939394,1752814278808,-785.77,0.00020821,2]
[372939395,1752814278818,-1105.74,0.00020821,2]
[372939396,1752814278828,-698.36,0.00020821,2]
[372939397,1752814278837,-822.88,0.00020821,2]
[372939398,1752814278849,-1074.47,0.00020821,2]
[372939399,1752814278859,-656.95,0.00020821,2]
[372939400,1752814278868,-460.0,0.00020821,2]
[372939401,1752814278878,-234.515397,0.00020821,2]
[372939402,1752814278888,-1003.73,0.00020821,2]
[372939403,1752814278898,-809.59,0.00020821,2]
[372939404,1752814278908,-774.39,0.00020821,2]
[372939405,1752814278918,-234.515397,0.00020821,2]
[372939406,1752814278927,-151.0,0.00020821,2]
[372939407,1752814278936,-575.36,0.00020821,2]
[372939408,1752814278946,-460.0,0.00020821,2]
[372939409,1752814278955,-151.0,0.00020821,2]
[372939410,1752814278965,-788.57,0.00020821,2]
[372939411,1752814278974,-734.59,0.00020821,2]
[372939412,1752814278987,-3087.49,0.00020821,2]
[372939413,1752814278996,-815.73,0.00020821,2]
[372939414,1752814279007,-866.64,0.00020821,2]
[372939415,1752814279017,-733.98,0.00020821,2]
[372939416,1752814279027,-480.23,0.00020821,2]
[372939417,1752814279036,-794.47,0.00020821,2]
[372939418,1752814279046,-7082.82,0.00020821,2]
[372939419,1752814279056,-1531.18,0.00020821,2]
[372939420,1752814279067,-2622.92,0.00020821,2]
[372939421,1752814279076,-151.0,0.00020821,2]
[372939422,1752814279086,-2241.65,0.00020821,2]
[372939423,1752814279096,-5019.62,0.00020821,2]
[372939424,1752814279106,-460.0,0.00020821,2]
[372939425,1752814279116,-352.216426,0.00020821,2]
[372939426,1752814279125,-485.521,0.00020968,2]
[372939427,1752814279135,-150.0,0.00021067,2]
[372939428,1752814279145,-592.0,0.00021081,2]
[372939429,1752814279154,-460.0,0.00021095,2]
[372939430,1752814279164,-617.58,0.00021095,2]
[372939431,1752814279174,-962.22,0.00021095,2]
[372939432,1752814279184,-996.21,0.00021095,2]
[372939433,1752814279193,-504.97,0.00021095,2]
[372939434,1752814279203,-460.0,0.00021095,2]
[372939435,1752814279212,-471.94,0.00021095,2]
[372939436,1752814279222,-557.15,0.00021095,2]
[372939437,1752814279232,-633.99,0.00021095,2]
[372939438,1752814279243,-460.0,0.00021095,2]
[372939439,1752814279252,-480.02,0.00021095,2]
[372939440,1752814279262,-907.33,0.00021095,2]
[372939441,1752814279271,-745.89,0.00021095,2]
[372939442,1752814279280,-638.44,0.00021095,2]
[372939443,1752814279290,-1126.45,0.00021095,2]
[372939444,1752814279300,-902.44,0.00021095,2]
[372939445,1752814279310,-686.15,0.00021095,2]
[372939446,1752814279320,-654.1,0.00021095,2]
[372939447,1752814279330,-555.02,0.00021095,2]
[372939448,1752814279339,-712.9,0.00021095,2]
[372939449,1752814279348,-465.47,0.00021095,2]
[372939450,1752814279358,-427.82975949,0.00021095,2]
[372939451,1752814279368,-462.34,0.00021095,2]
[372939452,1752814279377,-151.0,0.00021095,2]
[372939453,1752814279387,-683.36,0.00021095,2]
[372939454,1752814279397,-151.0,0.00021095,2]
[372939455,1752814279407,-2418.55,0.00021095,2]
[372939456,1752814279416,-1045.61,0.00021095,2]
[372939457,1752814279426,-538.01,0.00021095,2]
[372939458,1752814279435,-560.07,0.00021095,2]
[372939459,1752814279446,-528.91608877,0.00021095,2]
[372939460,1752814279455,-686.49,0.00021095,2]
[372939461,1752814279465,-152.193325,0.00021095,2]
[372939462,1752814279475,-211.916426,0.00021095,2]
[372939463,1752814279485,-151.0,0.00021095,2]
[372939464,1752814279495,-151.0,0.00021095,2]
[372939465,1752814279505,-211.916426,0.00021095,2]
[372939466,1752814279515,-883.96,0.00021095,2]
[372939467,1752814279525,-385.57136547,0.00021095,2]
[372939468,1752814279535,-1347.37,0.00021095,2]
[372939469,1752814279544,-951.1,0.00021095,2]
[372939470,1752814279554,-642.72,0.00021095,2]
[372939471,1752814279563,-460.0,0.00021095,2]
[372939472,1752814279573,-460.0,0.00021095,2]
[372939473,1752814279582,-151.0,0.00021095,2]
[372939474,1752814279591,-855.25,0.00021095,2]
[372939475,1752814279601,-618.09,0.00021095,2]
[372939476,1752814279611,-4686.52,0.00021095,2]
[372939477,1752814279621,-723.7,0.00021095,2]
[372939478,1752814279631,-460.0,0.00021095,2]
[372939479,1752814279640,-317.44546002,0.00021095,2]
[372939480,1752814279650,-1372.5,0.00021095,2]
[372939481,1752814279660,-898.43,0.00021095,2]
[372939482,1752814279670,-3660.04,0.00021095,2]
[372939483,1752814279680,-3275.21,0.00021095,2]
[372939484,1752814279689,-908.6,0.00021095,2]
[372939485,1752814279699,-460.0,0.00021095,2]
[372939486,1752814279709,-899.51,0.00021095,2]
[372939487,1752814279719,-884.48,0.00021095,2]
[372939488,1752814279729,-965.48,0.00021095,2]
[372939489,1752814279740,-888.06,0.00021095,2]
[372939490,1752814279750,-766.66,0.00021095,2]
[372939491,1752814279760,-1451.87,0.00021095,2]
[372939492,1752814279773,-789.94,0.00021095,2]
[372939493,1752814279783,-1037.24,0.00021095,2]
[372939494,1752814279792,-3558.83,0.00021095,2]
[372939495,1752814279802,-652.7,0.00021095,2]
[372939496,1752814279811,-460.0,0.00021095,2]
[372939497,1752814279820,-5829.63,0.00021095,2]
[372939498,1752814279830,-2475.6,0.00021095,2]
[372939499,1752814279840,-921.62,0.00021095,2]
[372939500,1752814279850,-727.58,0.00021095,2]
[372939501,1752814279860,-2187.72,0.00021095,2]
[372939502,1752814279869,-1653.45,0.00021095,2]
[372939503,1752814279879,-785.77,0.00021095,2]
[372939504,1752814279888,-1105.74,0.00021095,2]
[372939505,1752814279898,-698.36,0.00021095,2]
[372939506,1752814279908,-880.554708,0.00021095,2]
[372939507,1752814279917,-822.88,0.00021095,2]
[372939508,1752814279927,-1074.47,0.00021095,2]
[372939509,1752814279936,-880.554708,0.00021095,2]
[372939510,1752814279946,-656.95,0.00021095,2]
[372939511,1752814279955,-460.0,0.00021095,2]
[372939512,1752814279965,-1003.73,0.00021095,2]
[372939513,1752814279975,-809.59,0.00021095,2]
[372939514,1752814279984,-774.39,0.00021095,2]
[372939515,1752814279995,-575.36,0.00021095,2]
[372939516,1752814280005,-159.450959,0.00021095,2]
[372939517,1752814280014,-460.0,0.00021095,2]
[372939518,1752814280024,-159.450959,0.00021095,2]
[372939519,1752814280033,-788.57,0.00021095,2]
[372939520,1752814280043,-734.59,0.00021095,2]
[372939521,1752814280052,-3087.49,0.00021095,2]
[372939522,1752814280062,-815.73,0.00021095,2]
[372939523,1752814280071,-866.64,0.00021095,2]
[372939524,1752814280080,-733.98,0.00021095,2]
[372939525,1752814280173,-480.23,0.00021095,2]
[372939526,1752814280184,-794.47,0.00021095,2]
[372939527,1752814280195,-7082.82,0.00021095,2]
[372939528,1752814280212,-1531.18,0.00021095,2]
[372939529,1752814280222,-2622.92,0.00021095,2]
[372939530,1752814280232,-2241.65,0.00021095,2]
[372939531,1752814280243,-5019.62,0.00021095,2]
[372939532,1752814280253,-430.14564286,0.00021095,2]
[372939533,1752814280263,-5000.0,0.00021137,2]
[372939534,1752814280273,-1732.50139999,0.00021345,2]
[372939535,1752814280282,-460.0,0.00021369,2]
[372939536,1752814280292,-617.58,0.00021369,2]
[372939537,1752814280302,-962.22,0.00021369,2]
[372939538,1752814280311,-996.21,0.00021369,2]
[372939539,1752814280321,-504.97,0.00021369,2]
[372939540,1752814280330,-329.80564053,0.00021369,2]
[372939541,1752814280340,-471.94,0.00021369,2]
[372939542,1752814280350,-557.15,0.00021369,2]
[372939543,1752814280359,-633.99,0.00021369,2]
[372939544,1752814280369,-536.24304962,0.00021369,2]
[372939545,1752814280378,-480.02,0.00021369,2]
[372939546,1752814280388,-907.33,0.00021369,2]
[372939547,1752814280397,-745.89,0.00021369,2]
[372939548,1752814280407,-638.44,0.00021369,2]
[372939549,1752814280416,-1126.45,0.00021369,2]
[372939550,1752814280425,-902.44,0.00021369,2]
[372939551,1752814280435,-686.15,0.00021369,2]
[372939552,1752814280452,-654.1,0.00021369,2]
[372939553,1752814280462,-555.02,0.00021369,2]
[372939554,1752814280471,-151.0,0.00021369,2]
[372939555,1752814280481,-712.9,0.00021369,2]
[372939556,1752814280491,-465.47,0.00021369,2]
[372939557,1752814280501,-462.34,0.00021369,2]
[372939558,1752814280511,-156.027261,0.00021369,2]
[372939559,1752814280520,-156.027261,0.00021369,2]
[372939560,1752814280530,-1670.527849,0.00021369,2]
[372939561,1752814280540,-683.36,0.00021369,2]
[372939562,1752814280549,-1670.527849,0.00021369,2]
[372939563,1752814280559,-2418.55,0.00021369,2]
[372939564,1752814280568,-1045.61,0.00021369,2]
[372939565,1752814280578,-538.01,0.00021369,2]
[372939566,1752814280587,-560.07,0.00021369,2]
[372939567,1752814280596,-686.49,0.00021369,2]
[372939568,1752814280606,-883.96,0.00021369,2]
[372939569,1752814280616,-1347.37,0.00021369,2]
[372939570,1752814280625,-951.1,0.00021369,2]
[372939571,1752814280635,-642.72,0.00021369,2]
[372939572,1752814280645,-460.0,0.00021369,2]
[372939573,1752814280654,-460.0,0.00021369,2]
[372939574,1752814280664,-855.25,0.00021369,2]
[372939575,1752814280674,-618.09,0.00021369,2]
[372939576,1752814280684,-4686.52,0.00021369,2]
[372939577,1752814280694,-723.7,0.00021369,2]
[372939578,1752814280704,-460.0,0.00021369,2]
[372939579,1752814280714,-1372.5,0.00021369,2]
[372939580,1752814280724,-898.43,0.00021369,2]
[372939581,1752814280734,-3660.04,0.00021369,2]
[372939582,1752814280745,-3275.21,0.00021369,2]
[372939583,1752814280755,-908.6,0.00021369,2]
[372939584,1752814280767,-460.0,0.00021369,2]
[372939585,1752814280787,-899.51,0.00021369,2]
[372939586,1752814280798,-884.48,0.00021369,2]
[372939587,1752814280808,-965.48,0.00021369,2]
[372939588,1752814280818,-888.06,0.00021369,2]
[372939589,1752814280827,-766.66,0.00021369,2]
[372939590,1752814280837,-1451.87,0.00021369,2]
[372939591,1752814280846,-789.94,0.00021369,2]
[372939592,1752814280856,-1037.24,0.00021369,2]
[372939593,1752814280866,-3558.83,0.00021369,2]
[372939594,1752814280876,-652.7,0.00021369,2]
[372939595,1752814280885,-264.13310308,0.00021369,2]
[372939596,1752814280895,-5829.63,0.00021369,2]
[372939597,1752814280905,-2475.6,0.00021369,2]
[372939598,1752814280915,-921.62,0.00021369,2]
[372939599,1752814280925,-727.58,0.00021369,2]
[372939600,1752814280934,-2187.72,0.00021369,2]
[372939601,1752814280944,-1653.45,0.00021369,2]
[372939602,1752814280953,-785.77,0.00021369,2]
[372939603,1752814280962,-1105.74,0.00021369,2]
[372939604,1752814280972,-698.36,0.00021369,2]
[372939605,1752814280982,-822.88,0.00021369,2]
[372939606,1752814280992,-1074.47,0.00021369,2]
[372939607,1752814281001,-656.95,0.00021369,2]
[372939608,1752814281010,-163.14641236,0.00021369,2]
[372939609,1752814281019,-1003.73,0.00021369,2]
[372939610,1752814281028,-809.59,0.00021369,2]
[372939611,1752814281037,-774.39,0.00021369,2]
[372939612,1752814281046,-575.36,0.00021369,2]
[372939613,1752814281056,-460.0,0.00021369,2]
[372939614,1752814281065,-788.57,0.00021369,2]
[372939615,1752814281074,-734.59,0.00021369,2]
[372939616,1752814281083,-3087.49,0.00021369,2]
[372939617,1752814281092,-815.73,0.00021369,2]
[372939618,1752814281102,-866.64,0.00021369,2]
[372939619,1752814281111,-733.98,0.00021369,2]
[372939620,1752814281120,-480.23,0.00021369,2]
[372939621,1752814281129,-794.47,0.00021369,2]
[372939622,1752814281138,-7082.82,0.00021369,2]
[372939623,1752814281148,-1531.18,0.00021369,2]
[372939624,1752814281157,-2622.92,0.00021369,2]
[372939625,1752814281165,-2241.65,0.00021369,2]
[372939626,1752814281175,-5019.62,0.00021369,2]
[372939627,1752814281183,-460.0,0.00021643,2]
[372939628,1752814281192,-617.58,0.00021643,2]
[372939629,1752814281201,-962.22,0.00021643,2]
[372939630,1752814281211,-151.0,0.00021643,2]
[372939631,1752814281219,-996.21,0.00021643,2]
[372939632,1752814281228,-504.97,0.00021643,2]
[372939633,1752814281239,-471.94,0.00021643,2]
[372939634,1752814281249,-557.15,0.00021643,2]
[372939635,1752814281258,-633.99,0.00021643,2]
[372939636,1752814281267,-480.02,0.00021643,2]
[372939637,1752814281276,-907.33,0.00021643,2]
[372939638,1752814281285,-745.89,0.00021643,2]
[372939639,1752814281295,-638.44,0.00021643,2]
[372939640,1752814281304,-1126.45,0.00021643,2]
[372939641,1752814281314,-902.44,0.00021643,2]
[372939642,1752814281323,-686.15,0.00021643,2]
[372939643,1752814281332,-654.1,0.00021643,2]
[372939644,1752814281341,-555.02,0.00021643,2]
[372939645,1752814281349,-712.9,0.00021643,2]
[372939646,1752814281359,-465.47,0.00021643,2]
[372939647,1752814281367,-462.34,0.00021643,2]
[372939648,1752814281377,-683.36,0.00021643,2]
[372939649,1752814281386,-2418.55,0.00021643,2]
[372939650,1752814281395,-1045.61,0.00021643,2]
[372939651,1752814281404,-538.01,0.00021643,2]
[372939652,1752814281413,-560.07,0.00021643,2]
[372939653,1752814281422,-883.96,0.00021643,2]
[372939654,1752814281431,-1347.37,0.00021643,2]
[372939655,1752814281440,-951.1,0.00021643,2]
[372939656,1752814281450,-642.72,0.00021643,2]
[372939657,1752814281459,-460.0,0.00021643,2]
[372939658,1752814281468,-460.0,0.00021643,2]
[372939659,1752814281478,-855.25,0.00021643,2]
[372939660,1752814281489,-618.09,0.00021643,2]
[372939661,1752814281499,-4686.52,0.00021643,2]
[372939662,1752814281509,-723.7,0.00021643,2]
[372939663,1752814281518,-481.68228956,0.00021643,2]
[372939664,1752814281528,-1372.5,0.00021643,2]
[372939665,1752814281538,-898.43,0.00021643,2]
[372939666,1752814281547,-3660.04,0.00021643,2]
[372939667,1752814281557,-3275.21,0.00021643,2]
[372939668,1752814281567,-908.6,0.00021643,2]
[372939669,1752814281662,-432.97117764,0.00021643,2]
[372939670,1752814281673,-899.51,0.00021643,2]
[372939671,1752814281683,-884.48,0.00021643,2]
[372939672,1752814281692,-965.48,0.00021643,2]
[372939673,1752814281702,-888.06,0.00021643,2]
[372939674,1752814281711,-766.66,0.00021643,2]
[372939675,1752814281721,-1451.87,0.00021643,2]
[372939676,1752814281731,-789.94,0.00021643,2]
[372939677,1752814281742,-1037.24,0.00021643,2]
[372939678,1752814281752,-3558.83,0.00021643,2]
[372939679,1752814281762,-652.7,0.00021643,2]
[372939680,1752814281774,-5829.63,0.00021643,2]
[372939681,1752814281783,-2475.6,0.00021643,2]
[372939682,1752814281793,-921.62,0.00021643,2]
[372939683,1752814281803,-727.58,0.00021643,2]
[372939684,1752814281812,-2187.72,0.00021643,2]
[372939685,1752814281822,-1653.45,0.00021643,2]
[372939686,1752814281831,-785.77,0.00021643,2]
[372939687,1752814281841,-1105.74,0.00021643,2]
[372939688,1752814281850,-698.36,0.00021643,2]
[372939689,1752814281860,-822.88,0.00021643,2]
[372939690,1752814281870,-1074.47,0.00021643,2]
[372939691,1752814281880,-656.95,0.00021643,2]
[372939692,1752814281890,-1003.73,0.00021643,2]
[372939693,1752814281900,-809.59,0.00021643,2]
[372939694,1752814281909,-774.39,0.00021643,2]
[372939695,1752814281919,-575.36,0.00021643,2]
[372939696,1752814281928,-460.0,0.00021643,2]
[372939697,1752814281938,-788.57,0.00021643,2]
[372939698,1752814281948,-734.59,0.00021643,2]
[372939699,1752814281958,-3087.49,0.00021643,2]
[372939700,1752814281968,-815.73,0.00021643,2]
[372939701,1752814281977,-866.64,0.00021643,2]
[372939702,1752814281986,-733.98,0.00021643,2]
[372939703,1752814281997,-794.47,0.00021643,2]
[372939704,1752814282006,-480.23,0.00021643,2]
[372939705,1752814282017,-7082.82,0.00021643,2]
[372939706,1752814282027,-1531.18,0.00021643,2]
[372939707,1752814282037,-2622.92,0.00021643,2]
[372939708,1752814282048,-2241.65,0.00021643,2]
[372939709,1752814282058,-5019.62,0.00021643,2]
[372939710,1752814282069,-650.826,0.00021747,2]
[372939711,1752814282080,-2156.0,0.00021747,2]
[372939712,1752814282090,-968.0,0.00021747,2]
[372939713,1752814282100,-215.0738,0.00021759,2]
[372939714,1752814282110,-500.0,0.00021868,2]
[372939715,1752814282119,-500.0,0.000219,3]
[372939716,1752814282129,-460.0,0.00021917,2]
[372939717,1752814282139,-151.615499,0.00021917,2]
[372939718,1752814282148,-151.0,0.00021917,2]
[372939719,1752814282157,-371.984887,0.00021917,2]
[372939720,1752814282167,-371.984887,0.00021917,2]
[372939721,1752814282177,-617.58,0.00021917,2]
[372939722,1752814282192,-962.22,0.00021917,2]
[372939723,1752814282202,-996.21,0.00021917,2]
[372939724,1752814282211,-504.97,0.00021917,2]
[372939725,1752814282221,-471.94,0.00021917,2]
[372939726,1752814282229,-557.15,0.00021917,2]
[372939727,1752814282240,-633.99,0.00021917,2]
[372939728,1752814282249,-480.02,0.00021917,2]
[372939729,1752814282259,-745.89,0.00021917,2]
[372939730,1752814282268,-907.33,0.00021917,2]
[372939731,1752814282280,-638.44,0.00021917,2]
[372939732,1752814282290,-1126.45,0.00021917,2]
[372939733,1752814282299,-902.44,0.00021917,2]
[372939734,1752814282309,-686.15,0.00021917,2]
[372939735,1752814282318,-654.1,0.00021917,2]
[372939736,1752814282336,-555.02,0.00021917,2]
[372939737,1752814282352,-712.9,0.00021917,2]
[372939738,1752814282372,-465.47,0.00021917,2]
[372939739,1752814282393,-462.34,0.00021917,2]
[372939740,1752814282412,-683.36,0.00021917,2]
[372939741,1752814282429,-2418.55,0.00021917,2]
[372939742,1752814282449,-1045.61,0.00021917,2]
[372939743,1752814282464,-538.01,0.00021917,2]
[372939744,1752814282480,-560.07,0.00021917,2]
[372939745,1752814282501,-883.96,0.00021917,2]
[372939746,1752814282520,-1347.37,0.00021917,2]
[372939747,1752814282533,-951.1,0.00021917,2]
[372939748,1752814282553,-642.72,0.00021917,2]
[372939749,1752814282567,-460.0,0.00021917,2]
[372939750,1752814282583,-215.11488174,0.00021917,2]
[372939751,1752814282599,-855.25,0.00021917,2]
[372939752,1752814282613,-618.09,0.00021917,2]
[372939753,1752814282629,-4686.52,0.00021917,2]
[372939754,1752814282645,-723.7,0.00021917,2]
[372939755,1752814282661,-1372.5,0.00021917,2]
[372939756,1752814282676,-898.43,0.00021917,2]
[372939757,1752814282691,-3660.04,0.00021917,2]
[372939758,1752814282705,-3275.21,0.00021917,2]
[372939759,1752814282721,-908.6,0.00021917,2]
[372939760,1752814282737,-899.51,0.00021917,2]
[372939761,1752814282752,-884.48,0.00021917,2]
[372939762,1752814282768,-965.48,0.00021917,2]
[372939763,1752814282783,-888.06,0.00021917,2]
[372939764,1752814282797,-766.66,0.00021917,2]
[372939765,1752814282813,-1451.87,0.00021917,2]
[372939766,1752814282829,-789.94,0.00021917,2]
[372939767,1752814282844,-1037.24,0.00021917,2]
[372939768,1752814282858,-3558.83,0.00021917,2]
[372939769,1752814282873,-652.7,0.00021917,2]
[372939770,1752814282888,-5829.63,0.00021917,2]
[372939771,1752814282903,-2475.6,0.00021917,2]
[372939772,1752814282918,-921.62,0.00021917,2]
[372939773,1752814282933,-727.58,0.00021917,2]
[372939774,1752814282948,-2187.72,0.00021917,2]
[372939775,1752814282963,-1653.45,0.00021917,2]
[372939776,1752814282978,-785.77,0.00021917,2]
[372939777,1752814282994,-1105.74,0.00021917,2]
[372939778,1752814283009,-698.36,0.00021917,2]
[372939779,1752814283025,-822.88,0.00021917,2]
[372939780,1752814283041,-1074.47,0.00021917,2]
[372939781,1752814283058,-656.95,0.00021917,2]
[372939782,1752814283073,-1003.73,0.00021917,2]
[372939783,1752814283088,-809.59,0.00021917,2]
[372939784,1752814283103,-774.39,0.00021917,2]
[372939785,1752814283118,-575.36,0.00021917,2]
[372939786,1752814283134,-460.0,0.00021917,2]
[372939787,1752814283149,-788.57,0.00021917,2]
[372939788,1752814283164,-734.59,0.00021917,2]
[372939789,1752814283179,-3087.49,0.00021917,2]
[372939790,1752814283194,-815.73,0.00021917,2]
[372939791,1752814283207,-866.64,0.00021917,2]
[372939792,1752814283222,-733.98,0.00021917,2]
[372939793,1752814283237,-794.47,0.00021917,2]
[372939794,1752814283253,-480.23,0.00021917,2]
[372939795,1752814283269,-7082.82,0.00021917,2]
[372939796,1752814283284,-1531.18,0.00021917,2]
[372939797,1752814283302,-2622.92,0.00021917,2]
[372939798,1752814283317,-2241.65,0.00021917,2]
[372939799,1752814283333,-5019.62,0.00021917,2]
[372939800,1752814283348,-151.0,0.00021918,2]
[372939801,1752814283363,-151.0,0.00021918,2]
[372939802,1752814283499,-970.88,0.00022,7]
[372939803,1752814283509,-886.77,0.00022,2]
[372939804,1752814283519,-11291.5,0.00022,7]
[372939805,1752814283529,-22797.71,0.00022,2]
[372939806,1752814283539,-476.25663856,0.00022,7]
[372939807,1752814283549,-2012.86,0.00022,7]
[372939808,1752814283558,-151.0,0.00022,7]
[372939809,1752814283567,-229.860349,0.00022,7]
[372939810,1752814283577,-229.860349,0.00022,7]
[372939811,1752814283586,-151.0,0.00022,7]
[372939812,1752814283595,-179.995825,0.00022,7]
[372939813,1752814283605,-179.995825,0.00022,7]
[372939814,1752814283615,-151.0,0.00022,7]
[372939815,1752814283624,-234.515397,0.00022,7]
[372939816,1752814283633,-234.515397,0.00022,7]
[372939817,1752814283643,-151.0,0.00022,7]
[372939818,1752814283653,-151.932486,0.00022,7]
[372939819,1752814283662,-352.216426,0.00022,7]
[372939820,1752814283672,-500.0,0.000221,3]
[372939821,1752814283681,-1732.50139999,0.00022185,2]
[372939822,1752814283691,-479.9253351,0.00022191,2]
[372939823,1752814283700,-617.58,0.00022191,2]
[372939824,1752814283710,-962.22,0.00022191,2]
[372939825,1752814283719,-996.21,0.00022191,2]
[372939826,1752814283728,-504.97,0.00022191,2]
[372939827,1752814283738,-471.94,0.00022191,2]
[372939828,1752814283748,-557.15,0.00022191,2]
[372939829,1752814283757,-633.99,0.00022191,2]
[372939830,1752814283769,-480.02,0.00022191,2]
[372939831,1752814283779,-745.89,0.00022191,2]
[372939832,1752814283789,-907.33,0.00022191,2]
[372939833,1752814283798,-638.44,0.00022191,2]
[372939834,1752814283809,-1126.45,0.00022191,2]
[372939835,1752814283818,-902.44,0.00022191,2]
[372939836,1752814283827,-686.15,0.00022191,2]
[372939837,1752814283836,-654.1,0.00022191,2]
[372939838,1752814283848,-555.02,0.00022191,2]
[372939839,1752814283859,-712.9,0.00022191,2]
[372939840,1752814283868,-465.47,0.00022191,2]
[372939841,1752814283878,-462.34,0.00022191,2]
[372939842,1752814283887,-683.36,0.00022191,2]
[372939843,1752814283896,-2418.55,0.00022191,2]